Workbook

Sheet 名单
A1: 贵阳市体育局直属事业单位2023年公开招聘工作人员面试成绩及进入体检环节人员名单
A2: 序号 | B2: 姓名 | C2: 准考证号 | D2: 单位 | E2: 报考岗位及代码 | F2: 笔试成绩 | G2: 笔试成绩（百分制） | H2: 笔试成绩30% | I2: 专业测试成绩 | J2: 专业测试成绩40% | K2: 笔试、专业测试成绩 | L2: 面试成绩 | M2: 面试成绩30% | N2: 笔试、专业测试、面试成绩 | O2: 综合排名 | P2: 是否进入体检
A3: 1 | B3: 欧炎明 | C3: 1152017204102 | D3: 贵阳市体育中学 | E3: 皮划艇教练20101070101 | F3: 83.5 | G3: =F3/3 -> 27.83 | H3: =G3*0.3 -> 8.35 | I3: 87.67 | J3: =I3*0.4 -> 35.07 | K3: =H3+J3 -> 43.42 | L3: 73 | M3: =L3*0.3 -> 21.9 | N3: =K3+M3 -> 65.32 | O3: 1 | P3: 是
A4: 2 | B4: 辜饶仪 | C4: 1152017202623 | D4: 贵阳市人民体育场 | E4: 专业技术岗位 20101070301 | F4: 195.5 | G4: 65.17 | H4: 19.55 | I4: 78 | J4: 31.2 | K4: 50.75 | L4: 82.2 | M4: 24.66 | N4: =K4+M4 -> 75.41 | O4: 1 | P4: 是
A5: 3 | B5: 廖翊竹 | C5: 1152017204309 | D5: 贵阳市人民体育场 | E5: 专业技术岗位 20101070301 | F5: 176.5 | G5: 58.83 | H5: 17.65 | I5: 76 | J5: 30.4 | K5: 48.05 | L5: 79.4 | M5: 23.82 | N5: 71.87 | O5: 2 | P5: 否
A6: 4 | B6: 封铃 | C6: 1152017200818 | D6: 贵阳市人民体育场 | E6: 专业技术岗位 20101070301 | F6: 185.5 | G6: 61.83 | H6: 18.55 | I6: 75 | J6: 30 | K6: 48.55 | L6: 77.6 | M6: 23.28 | N6: 71.83 | O6: 3 | P6: 否
A9: 序号 | B9: 姓名 | C9: 准考证号 | D9: 单位 | E9: 报考岗位及代码 | F9: 笔试成绩 | G9: 笔试成绩（百分制） | H9: 笔试成绩60% | I9: 面试成绩 | J9: 面试成绩40% | K9: 笔试、面试成绩 | L9: 综合排名 | M9: 是否进入体检
A10: 5 | B10: 吴仲林 | C10: 1152017204211 | D10: 贵阳市体育总会秘书处 | E10: 工作人员20101070201 | F10: 200.5 | G10: =F10/3 -> 66.83 | H10: =G10*60% -> 40.1 | I10: 76.6 | J10: =I10*40% -> 30.64 | K10: =H10+J10 -> 70.74 | L10: 1 | M10: 是
A11: 6 | B11: 罗光凯 | C11: 1152017200201 | D11: 贵阳市体育总会秘书处 | E11: 工作人员20101070201 | F11: 183.5 | G11: 61.17 | H11: 36.7 | I11: 80.4 | J11: 32.16 | K11: 68.86 | L11: 2 | M11: 否
A12: 7 | B12: 朱钰 | C12: 1152017202501 | D12: 贵阳市体育总会秘书处 | E12: 工作人员20101070201 | F12: 172.5 | G12: 57.50 | H12: 34.5 | I12: 81.2 | J12: 32.48 | K12: 66.98 | L12: 3 | M12: 否
